bitfinex/quotes_SOLUSD_20240711
["timestamp","ask_amount","ask_price","bid_price","bid_amount"]
[1720672376823,11.87,140.93,140.88,11.87]
[1720672377030,9.44051469,140.96,140.88,11.87]
[1720672377203,11.87,140.93,140.88,11.87]
[1720672377709,6.5734,140.96,140.88,11.87]
[1720672377909,6.5734,140.96,140.86,15.1873]
[1720672378117,11.87,140.96,140.91,11.87]
[1720672382250,11.87,140.99,140.94,11.87]
[1720672383931,0.34,140.98,140.94,11.87]
[1720672384111,0.34,140.98,140.92,16.1505]
[1720672384312,0.34,140.98,140.94,11.87]
[1720672384820,12.21,140.98,140.93,11.87]
[1720672385031,11.87,140.97,140.92,28.0205]
[1720672385212,11.87,140.96,140.92,16.1505]
[1720672385628,11.87,140.95,140.92,16.1505]
[1720672386753,11.87,140.96,140.92,16.1505]
[1720672387243,12.04,140.97,140.92,28.0205]
[1720672387460,0.34,140.96,140.92,28.0205]
[1720672387943,0.17,140.99,140.93,11.87]
[1720672388126,11.87,140.98,140.93,11.87]
[1720672388327,12.04,140.99,140.94,11.87]
[1720672388951,11.87,140.98,140.93,11.87]
[1720672394362,12.21,140.99,140.94,11.87]
[1720672394560,0.34,140.99,140.92,16.1505]
[1720672394870,0.34,140.99,140.95,11.87]
[1720672397048,12.21,140.99,140.95,11.87]
[1720672398255,12.21,140.99,140.94,11.87]
[1720672398969,0.17,140.98,140.92,16.1505]
[1720672399168,11.87,140.97,140.92,28.0205]
[1720672399346,0.17,140.96,140.92,28.0205]
[1720672399661,0.34,140.96,140.92,28.0205]
[1720672400543,0.34,140.96,140.92,16.1505]
[1720672400771,11.87,140.96,140.92,16.1505]
[1720672401150,12.21,140.97,140.92,28.0205]
[1720672401574,0.34,140.97,140.92,28.0205]
[1720672403278,12.04,140.99,140.93,11.87]
[1720672403456,0.34,140.98,140.94,11.87]
[1720672404069,0.17,140.98,140.94,11.87]
[1720672404472,11.87,140.96,140.92,16.1505]
[1720672405763,12.21,140.97,140.92,28.0205]
[1720672405960,0.17,140.96,140.92,28.0205]
[1720672406777,0.17,140.99,140.94,11.87]
[1720672406976,12.38,140.99,140.94,11.87]
[1720672409278,6.7582738,141.0,140.92,16.1505]
[1720672409279,0.2789738,141.0,140.97,11.87]
[1720672409461,0.2789738,141.0,140.98,11.87]
[1720672410475,0.2789738,141.0,140.99,11.87]
[1720672410853,0.2789738,141.0,140.98,11.87]
[1720672411053,0.2789738,141.0,140.97,27.374]
[1720672411257,12.1489738,141.0,140.94,15.5919]
[1720672411554,0.2789738,141.0,140.96,11.87]
[1720672411956,0.2789738,141.0,140.97,11.87]
[1720672412982,0.2789738,141.0,140.96,11.87]
[1720672413561,0.2789738,141.0,140.97,11.87]
[1720672414069,0.2789738,141.0,140.96,11.87]
[1720672415975,0.2789738,141.0,140.97,11.87]
[1720672419389,12.1489738,141.0,140.94,15.5919]
[1720672419564,0.34,140.99,140.95,11.87]
[1720672420071,0.34,140.99,140.94,27.4619]
[1720672421168,0.34,140.99,140.95,11.87]
[1720672421570,0.34,140.99,140.96,11.87]
[1720672421780,0.2789738,141.0,140.97,11.87]
[1720672426186,0.2789738,141.0,140.98,11.87]
[1720672428789,0.2789738,141.0,140.99,11.87]
[1720672433176,0.2789738,141.0,140.94,15.5919]
[1720672433388,0.2789738,141.0,140.99,11.87]
[1720672433897,0.2789738,141.0,140.94,15.5919]
[1720672434079,0.2789738,141.0,140.97,11.87]
[1720672434279,0.2789738,141.0,140.96,11.87]
[1720672434692,12.1489738,141.0,140.94,15.5919]
[1720672434893,12.1489738,141.0,140.95,11.87]
[1720672435100,12.04,140.99,140.94,15.5919]
[1720672435288,12.04,140.99,140.94,27.4619]
[1720672435482,0.2789738,141.0,140.94,15.5919]
[1720672435692,0.2789738,141.0,140.96,11.87]
[1720672436982,0.2789738,141.0,140.97,11.87]
[1720672438387,0.2789738,141.0,140.99,11.87]
[1720672438989,0.2789738,141.0,140.98,11.87]
[1720672443507,0.2789738,141.0,140.94,15.5919]
[1720672443703,0.2789738,141.0,140.95,11.87]
[1720672443902,0.2789738,141.0,140.96,11.87]
[1720672444093,0.2789738,141.0,140.97,11.87]
[1720672445009,0.2789738,141.0,140.98,11.87]
[1720672446209,0.2789738,141.0,140.99,11.87]
[1720672446416,0.2789738,141.0,140.98,11.87]
[1720672446596,0.2789738,141.0,140.99,11.87]
[1720672447508,0.2789738,141.0,140.99,27.8702]
[1720672448204,0.2789738,141.0,140.99,72.8702]
[1720672449013,0.2789738,141.0,140.99,27.8702]
[1720672449826,0.2789738,141.0,140.95,15.4317]
[1720672450018,0.2789738,141.0,140.99,11.87]
[1720672450429,0.2789738,141.0,140.95,15.4317]
[1720672450618,0.2789738,141.0,140.99,11.87]
[1720672457223,0.2789738,141.0,140.95,15.4317]
[1720672457420,0.2789738,141.0,140.99,11.87]
[1720672474129,0.2789738,141.0,140.95,36.8017]
[1720672474335,0.2789738,141.0,140.99,11.87]
[1720672477126,0.2789738,141.0,140.99,56.87]
[1720672477337,0.2789738,141.0,140.99,11.87]
[1720672480121,0.2789738,141.0,140.99,78.1698]
[1720672481043,0.2789738,141.0,140.99,78.3398]
[1720672481851,6.9421,141.1,141.0,0.17]
[1720672482030,6.9421,141.1,141.07,11.87]
[1720672482355,6.9421,141.1,141.06,11.87]
[1720672483545,6.9421,141.1,141.07,11.87]
[1720672484255,6.9421,141.1,141.06,11.87]
[1720672484832,6.9421,141.1,141.05,11.87]
[1720672484833,0.34,141.09,141.05,11.87]
[1720672485147,31.41448507,141.08,141.03,11.87]
[1720672485349,0.34,141.09,141.04,11.87]
[1720672485551,0.34,141.09,141.05,11.87]
[1720672486135,18.9821,141.1,141.05,11.87]
[1720672486443,0.34,141.09,141.05,11.87]
[1720672486642,0.17,141.08,140.99,21.2998]
[1720672486953,0.17,141.08,141.04,11.87]
[1720672488038,0.17,141.08,140.99,21.2998]
[1720672488235,19.54462337,141.08,141.04,11.87]
[1720672488443,0.17,141.08,141.04,11.87]
[1720672488635,12.04,141.08,141.03,11.87]
[1720672488846,0.34,141.09,141.04,11.87]
[1720672489343,12.21,141.09,141.04,11.87]
[1720672490130,0.34,141.09,141.04,11.87]
[1720672490334,0.34,141.09,141.05,11.87]
[1720672491460,19.37396029,141.08,141.05,11.87]
[1720672492332,0.17,141.09,141.05,11.87]
[1720672492549,0.51,141.09,141.05,11.87]
[1720672492746,19.37309613,141.08,141.05,11.87]
[1720672493345,19.37309613,141.08,140.99,15.0581]
[1720672493534,31.24309613,141.08,141.03,11.87]
[1720672493756,19.37309613,141.07,141.03,11.87]
[1720672495064,19.37309613,141.07,141.04,11.87]
[1720672495266,19.37309613,141.08,141.04,11.87]
[1720672496166,19.37465402,141.07,141.04,11.87]
[1720672496337,19.37465402,141.08,141.05,11.87]
[1720672497445,19.37465402,141.08,141.04,11.87]
[1720672497656,12.04,141.07,140.99,15.0581]
[1720672497870,19.54465402,141.06,140.99,15.0581]
[1720672498168,31.41465402,141.06,141.01,11.87]
[1720672498459,12.04,141.06,141.01,11.87]
[1720672499447,12.04,141.05,141.0,11.87]
[1720672500357,0.17,141.04,140.95,15.9206]
[1720672500543,0.17,141.04,140.95,11.87]
[1720672500544,11.87,141.01,140.95,11.87]
[1720672500753,12.21,141.0,140.95,11.87]
[1720672503072,12.21,141.0,140.9,15.9206]
[1720672503073,11.87,140.98,140.92,11.87]
[1720672503251,11.87,140.98,140.93,11.87]
[1720672503447,0.17,140.99,140.95,11.87]
[1720672503758,6.8667,141.0,140.96,11.87]
[1720672504289,52.3462,141.04,140.96,11.87]
[1720672504445,11.87,141.03,140.98,11.87]
[1720672504644,7.3462,141.04,140.98,11.87]
[1720672504850,7.3462,141.04,140.99,11.87]
[1720672505166,19.2162,141.04,140.99,11.87]
[1720672505472,19.2162,141.04,140.93,37.794]
[1720672505473,19.2162,141.04,141.0,11.87]
[1720672505676,10.097461,141.08,140.95,6.5335]
[1720672505864,11.87,141.06,141.01,11.87]
[1720672507054,10.097461,141.08,140.98,11.87]
[1720672507055,7.3462,141.08,140.98,11.87]
[1720672507267,31.24556411,141.07,141.02,11.87]
[1720672507450,11.87,141.07,141.02,11.87]
[1720672508664,19.5562,141.08,141.03,11.87]
[1720672508859,0.34,141.07,141.03,11.87]
[1720672509064,6.5267,141.08,141.05,11.87]
[1720672509276,11.87,141.1,141.05,11.87]
[1720672509459,19.37339828,141.09,141.05,11.87]
[1720672510159,19.37339828,141.09,140.99,16.424]
[1720672510160,19.37339828,141.09,141.0,1.41786223]
[1720672510368,0.17,141.08,141.0,46.41786223]
[1720672510661,0.17,141.09,141.05,11.87]
[1720672510873,0.51,141.09,141.05,11.87]
[1720672511257,0.51,141.09,141.06,11.87]
[1720672512063,0.17,141.1,141.05,11.87]
[1720672512259,19.88262551,141.1,141.01,6.5335]
[1720672512474,31.24262551,141.09,141.04,11.87]
[1720672512772,11.87,141.09,141.04,11.87]
[1720672513150,0.51,141.1,141.04,11.87]
[1720672513352,19.37382743,141.09,141.04,11.87]
[1720672513568,31.24382743,141.09,141.04,11.87]
[1720672513770,11.87,141.09,141.04,11.87]
[1720672514079,11.87,141.09,141.01,6.5335]
[1720672514277,11.87,141.06,140.99,16.424]
[1720672514574,11.87,141.06,141.01,11.87]
[1720672515353,11.87,141.06,140.99,16.424]
[1720672515354,11.87,141.04,140.99,16.424]
[1720672515558,11.87,141.04,140.99,11.87]
[1720672516879,12.21,141.05,141.0,11.87]
[1720672517092,11.87,141.06,141.01,11.87]
[1720672518886,0.17,141.05,140.96,15.8877]
[1720672519094,11.87,141.04,140.98,11.87]
[1720672519271,11.87,141.04,140.99,12.71251366]
[1720672519476,12.38,141.05,140.99,11.87]
[1720672519786,12.38,141.05,141.0,11.87]
[1720672519971,12.21,141.05,141.0,11.87]
[1720672520571,12.21,141.05,140.99,11.87]
[1720672521696,11.87,141.04,140.99,11.87]
[1720672522804,12.21,141.05,141.0,11.87]
[1720672523182,0.34,141.05,141.01,11.87]
[1720672523389,11.87,141.06,141.01,11.87]
[1720672523602,18.9663,141.07,141.02,11.87]
[1720672525116,0.34,141.06,141.02,11.87]
[1720672525483,12.21,141.06,141.01,11.87]
[1720672525709,0.34,141.06,140.98,11.87]
[1720672525882,0.34,141.06,141.02,11.87]
[1720672526081,2.78531796,141.09,141.03,11.87]
[1720672526082,0.17,141.09,141.03,11.87]
[1720672526303,11.87,141.09,141.04,11.87]
[1720672526627,6.9598,141.1,141.0,23.71]
[1720672527305,6.9598,141.1,141.01,16.0503]
[1720672527503,0.51,141.09,141.01,16.0503]
[1720672529301,6.2274,141.13,141.02,0.17]
[1720672529510,6.2274,141.13,141.03,24.39774134]
[1720672530104,6.2274,141.13,141.04,45.0]
[1720672530330,6.2274,141.13,141.05,0.68764384]
[1720672532027,0.34,141.12,141.04,45.0]
[1720672532725,0.34,141.12,141.03,23.71]
[1720672533020,0.34,141.12,141.04,20.0]
[1720672533021,0.17,141.11,141.04,20.0]
[1720672533204,0.34,141.12,141.04,20.0]
[1720672533724,0.34,141.12,141.02,20.0]
[1720672533902,0.17,141.11,141.03,45.0]
[1720672534233,0.17,141.11,141.02,20.0]
[1720672534999,0.17,141.11,141.01,39.7603]
[1720672535201,0.17,141.11,141.01,16.0503]
[1720672535401,19.54210285,141.11,141.01,16.0503]
[1720672535606,0.34,141.1,141.01,16.0503]
[1720672537431,0.34,141.1,141.02,45.0]
[1720672539220,0.17,141.1,141.02,45.0]
[1720672539415,0.51,141.11,141.02,45.0]
[1720672540724,0.34,141.11,141.02,45.0]
[1720672540913,6.2274,141.13,141.02,45.0]
[1720672541109,0.34,141.12,141.02,45.0]
[1720672541318,0.17,141.12,141.03,23.88]
[1720672541526,0.17,141.12,141.04,45.0]
[1720672542438,0.34,141.12,141.03,23.71]
[1720672542636,0.17,141.11,141.03,23.71]
[1720672543641,0.34,141.12,141.04,45.0]
[1720672543642,0.17,141.12,141.04,45.0]
[1720672543842,0.34,141.12,141.04,45.0]
[1720672544348,0.34,141.12,141.03,23.71]
[1720672545456,0.34,141.12,141.04,45.0]
[1720672546640,0.34,141.12,141.08,11.85]
[1720672547951,12.19,141.12,141.07,11.85]
[1720672548445,0.34,141.12,141.08,11.85]
[1720672549552,0.17,141.12,141.08,11.85]
[1720672549858,0.17,141.12,141.09,11.85]
[1720672552442,6.2274,141.13,141.05,11.85]
[1720672552644,6.2274,141.13,141.1,11.85]
[1720672553346,6.2274,141.13,141.11,11.85]
[1720672553571,1.1595,141.14,141.11,11.85]
[1720672554574,1.1595,141.14,141.1,11.85]
[1720672554970,0.8195,141.14,141.11,11.85]
[1720672555275,0.8448699,141.15,141.08,0.17]
[1720672555456,0.8448699,141.15,141.13,11.85]
[1720672556144,0.8448699,141.15,141.14,13.26640503]
[1720672556468,0.8448699,141.15,141.14,11.85]
[1720672562682,0.8448699,141.15,141.14,56.85]
[1720672566569,0.8448699,141.15,141.14,11.85]
[1720672567469,0.8448699,141.15,141.14,56.85]
[1720672567854,0.8448699,141.15,141.14,11.85]
[1720672570376,0.8448699,141.15,141.14,56.85]
[1720672572197,0.8448699,141.15,141.14,11.85]
[1720672573385,0.8448699,141.15,141.08,15.6834]
[1720672573689,0.8448699,141.15,141.13,11.85]
[1720672573905,0.8448699,141.15,141.14,11.85]
[1720672575911,0.8448699,141.15,141.08,37.0534]
[1720672576118,0.8448699,141.15,141.13,11.85]
[1720672576611,0.8448699,141.15,141.08,15.6834]
[1720672576780,0.8448699,141.15,141.13,11.85]
[1720672577189,0.8448699,141.15,141.14,11.85]
[1720672584328,0.8448699,141.15,141.13,1.41400332]
[1720672584496,0.8448699,141.15,141.08,22.2991]
[1720672584826,0.8448699,141.15,141.13,11.85]
[1720672585220,0.8448699,141.15,141.12,11.85]
[1720672585930,0.8448699,141.15,141.13,11.85]
[1720672586998,0.8448699,141.15,141.14,11.85]
[1720672588112,0.8448699,141.15,141.13,11.85]
[1720672589112,0.8448699,141.15,141.08,22.2991]
[1720672589330,0.8448699,141.15,141.12,11.85]
[1720672589713,0.8448699,141.15,141.08,15.6834]
[1720672589916,0.8448699,141.15,141.12,11.85]
[1720672590225,11.85,141.14,141.05,6.2518]
[1720672590438,11.85,141.14,141.09,11.85]
[1720672591537,13.0348699,141.15,141.1,11.85]
[1720672591742,1.1848699,141.15,141.05,53.6518]
[1720672591933,1.1848699,141.15,141.11,11.85]
[1720672592428,1.0148699,141.15,141.12,11.85]
[1720672593319,1.0148699,141.15,141.13,11.85]
[1720672593526,0.8448699,141.15,141.14,11.85]
[1720672596034,0.8448699,141.15,141.09,15.16]
[1720672596035,0.8448699,141.15,141.13,11.85]
[1720672596241,0.8448699,141.15,141.12,11.85]
[1720672599531,0.8448699,141.15,141.13,11.85]
[1720672600122,0.8448699,141.15,141.14,11.85]
[1720672608446,0.8448699,141.15,141.14,12.37939904]
[1720672609930,0.8448699,141.15,141.14,11.85]
[1720672612134,0.8448699,141.15,141.14,56.85]
[1720672612336,0.8448699,141.15,141.14,57.02]
[1720672613131,0.8448699,141.15,141.14,56.85]
[1720672615148,0.8448699,141.15,141.14,57.02]
[1720672615347,9.00870281,141.24,141.14,57.02]
[1720672615552,19.35935004,141.23,141.2,11.85]
[1720672617055,0.17,141.22,141.13,15.3547]
[1720672617258,0.17,141.22,141.18,11.85]
[1720672618240,31.38013841,141.22,141.13,15.3547]
[1720672618445,0.17,141.2,141.17,11.85]
[1720672618754,0.17,141.2,141.13,15.3547]
[1720672618943,0.17,141.2,141.17,11.85]
[1720672619347,0.17,141.2,141.12,47.4]
[1720672619654,12.02,141.2,141.15,11.85]
[1720672619865,0.34,141.19,141.15,11.85]
[1720672620029,0.17,141.18,141.1,21.9152]
[1720672620349,0.17,141.18,141.14,11.85]
[1720672620752,0.17,141.18,141.15,11.85]
[1720672621144,6.9618,141.19,141.15,11.85]
[1720672621346,6.9618,141.19,141.16,11.85]
[1720672622056,0.8195,141.21,141.17,11.85]
[1720672622668,0.8195,141.21,141.18,11.85]
[1720672623260,0.17,141.2,141.16,11.85]
[1720672623462,19.87263194,141.2,141.16,11.85]
[1720672623643,0.51,141.2,141.16,11.85]
[1720672624157,0.34,141.2,141.17,11.85]
[1720672624536,0.8195,141.21,141.17,11.85]
[1720672625656,0.34,141.22,141.18,11.85]
[1720672625956,0.17,141.21,141.18,11.85]
[1720672626154,0.34,141.21,141.18,11.85]
[1720672629561,0.34,141.21,141.17,11.85]
[1720672629969,0.17,141.22,141.17,11.85]
[1720672630175,0.51,141.22,141.18,11.85]
[1720672631361,19.36109525,141.21,141.17,11.85]
[1720672631677,0.51,141.22,141.17,11.85]
[1720672632476,19.36145709,141.21,141.17,11.85]
[1720672632674,0.51,141.22,141.17,11.85]
[1720672633372,19.36109822,141.21,141.17,11.85]
[1720672633779,0.51,141.22,141.17,11.85]
[1720672634147,3.66374858,141.25,141.17,27.4783]
[1720672634360,19.3607353,141.24,141.2,11.85]
[1720672634560,11.85,141.23,141.18,11.85]
[1720672634962,3.66374858,141.25,141.19,11.85]
[1720672634963,11.85,141.24,141.19,11.85]
[1720672635554,0.51,141.23,141.19,11.85]
[1720672635957,0.34,141.23,141.19,11.85]
[1720672636161,11.85,141.24,141.19,11.85]
[1720672636467,12.02,141.24,141.19,11.85]
[1720672636766,0.17,141.24,141.2,11.85]
[1720672636969,19.8686983,141.24,141.2,11.85]
[1720672637176,0.51,141.24,141.2,11.85]
[1720672637562,12.36,141.24,141.19,11.85]
[1720672637768,12.36,141.24,141.17,15.6283]
[1720672638091,6.6328,141.22,141.13,15.2369]
[1720672638256,11.85,141.2,141.15,11.85]
[1720672638878,0.34,141.21,141.08,21.2968]
[1720672638879,12.02,141.19,141.08,21.2968]
[1720672639087,12.02,141.19,141.14,11.85]
[1720672639256,12.02,141.19,141.08,33.6568]
[1720672639257,0.34,141.18,141.08,21.2968]
[1720672639595,0.34,141.18,141.15,11.85]
[1720672639766,0.17,141.21,141.16,11.85]
[1720672639967,76.72158261,141.21,141.16,11.85]
[1720672640278,57.36,141.21,141.16,11.85]
[1720672641656,45.51,141.21,141.17,11.85]
[1720672642260,0.51,141.21,141.17,11.85]
[1720672642665,12.36,141.21,141.16,11.85]
[1720672642866,31.2120186,141.2,141.15,11.85]
[1720672643176,0.34,141.19,141.14,11.85]
[1720672643361,12.19,141.19,141.14,11.85]
[1720672644077,0.34,141.19,141.14,11.85]
[1720672644475,0.34,141.19,141.15,11.85]
[1720672645266,0.17,141.19,141.16,11.85]
[1720672645978,0.34,141.2,141.16,11.85]
[1720672646871,0.17,141.19,141.16,11.85]
[1720672647680,12.19,141.2,141.16,11.85]
[1720672648386,19.36241056,141.19,141.16,11.85]
[1720672648586,19.36241056,141.19,141.15,11.85]
[1720672649683,0.34,141.18,141.14,11.85]
[1720672650179,0.51,141.19,141.14,11.85]
[1720672651181,13.1795,141.19,141.09,15.1395]
[1720672651393,12.02,141.16,141.11,11.85]
[1720672651604,0.34,141.15,141.11,11.85]
[1720672651772,0.34,141.15,141.12,11.85]
[1720672652168,0.17,141.15,141.12,11.85]
[1720672652380,0.34,141.15,141.12,11.85]
[1720672652577,0.34,141.15,141.09,15.1395]
[1720672652578,12.19,141.15,141.09,15.1395]
[1720672652885,0.34,141.15,141.11,11.85]
[1720672653273,0.34,141.15,141.09,15.1395]
[1720672653466,0.34,141.15,141.11,11.85]
[1720672654285,12.19,141.15,141.1,11.85]
[1720672654588,0.34,141.15,141.11,11.85]
[1720672655484,0.17,141.14,141.11,11.85]
[1720672655794,0.34,141.14,141.11,11.85]
[1720672656168,0.34,141.14,141.1,11.85]
[1720672656689,12.19,141.14,141.05,16.2302]
[1720672656984,12.02,141.13,141.08,11.85]
[1720672657188,0.17,141.12,141.08,11.85]
[1720672657570,0.34,141.12,141.05,16.2302]
[1720672657884,12.02,141.12,141.07,11.85]
[1720672658092,0.17,141.12,141.08,11.85]
[1720672658875,0.17,141.12,141.05,16.2302]
[1720672659077,0.17,141.13,141.09,11.85]
[1720672659277,0.34,141.13,141.09,11.85]
[1720672659790,0.17,141.15,141.1,11.85]
[1720672659989,0.51,141.15,141.11,11.85]
[1720672660490,0.51,141.15,141.05,16.2302]
[1720672660491,11.85,141.14,141.05,16.2302]
[1720672660683,0.34,141.13,141.09,11.85]
[1720672662110,0.17,141.15,141.1,11.85]
[1720672662284,12.36,141.15,141.1,11.85]
[1720672662679,12.36,141.15,141.09,11.85]
[1720672662680,11.85,141.14,141.09,11.85]
[1720672662986,12.36,141.15,141.1,11.85]
[1720672664496,0.51,141.15,141.12,11.85]
[1720672664680,18.0325,141.17,141.12,11.85]
[1720672664885,0.8195,141.19,141.14,11.85]
[1720672665085,11.85,141.2,141.15,11.85]
[1720672665578,17.9795,141.21,141.15,11.85]
[1720672665778,17.9795,141.21,141.16,11.85]
[1720672666402,11.85,141.2,141.15,11.85]
[1720672666905,11.85,141.18,141.13,11.85]
[1720672667084,0.34,141.17,141.13,11.85]
[1720672668377,0.34,141.17,141.14,11.85]
[1720672668589,12.02,141.19,141.14,11.85]
[1720672668590,0.34,141.18,141.14,11.85]
[1720672669085,0.17,141.17,141.14,11.85]
[1720672669285,6.1295,141.21,141.16,11.85]
[1720672669498,17.9795,141.21,141.16,11.85]
[1720672670710,0.51,141.2,141.17,11.85]
[1720672670878,0.51,141.2,141.16,11.85]
[1720672671283,12.36,141.2,141.12,11.85]
[1720672671490,12.36,141.2,141.15,11.85]
[1720672671687,0.51,141.2,141.16,11.85]
[1720672673903,3.69610476,141.23,141.12,11.85]
[1720672674113,19.36093495,141.22,141.18,11.85]
[1720672674616,15.54610476,141.23,141.18,11.85]
[1720672674911,11.85,141.21,141.1,15.6186]
[1720672675084,0.17,141.2,141.16,11.85]
[1720672675279,12.36,141.2,141.15,11.85]
[1720672676097,0.51,141.2,141.16,11.85]
[1720672676713,12.36,141.2,141.15,11.85]
[1720672677605,0.51,141.2,141.12,11.85]
[1720672677792,0.51,141.2,141.16,11.85]
[1720672678711,0.51,141.2,141.17,11.85]
[1720672680107,0.51,141.2,141.16,11.85]
[1720672680913,11.85,141.19,141.14,11.85]
[1720672681209,0.51,141.18,141.14,11.85]
[1720672681502,57.36,141.18,141.13,11.85]
[1720672681910,0.51,141.18,141.14,11.85]
[1720672682283,57.36,141.18,141.13,11.85]
[1720672685107,57.36,141.18,141.14,11.85]
[1720672685594,0.51,141.18,141.14,11.85]
[1720672685790,0.51,141.18,141.15,11.85]
[1720672685994,17.8503,141.2,141.15,11.85]
[1720672686294,6.0003,141.2,141.15,11.85]
[1720672686502,11.85,141.21,141.16,11.85]
[1720672686706,19.36236739,141.2,141.12,11.85]
[1720672686891,19.36236739,141.21,141.17,11.85]
[1720672687724,31.21236739,141.21,141.16,11.85]
[1720672687891,19.36236739,141.2,141.16,11.85]
[1720672688096,0.51,141.19,141.16,11.85]
[1720672688303,0.17,141.17,141.1,15.6186]
[1720672688506,0.51,141.17,141.13,11.85]
[1720672689614,0.34,141.17,141.14,11.85]
[1720672689819,0.51,141.18,141.14,11.85]
[1720672691112,0.51,141.18,141.15,11.85]
[1720672691315,0.51,141.18,141.16,11.85]
[1720672691613,6.1461,141.22,141.16,11.85]
[1720672691917,6.1461,141.22,141.12,11.85]
[1720672691918,19.36314527,141.21,141.17,11.85]
[1720672692615,6.1461,141.22,141.17,11.85]
[1720672692811,0.17,141.19,141.17,11.85]
[1720672693405,0.17,141.19,141.16,11.85]
[1720672694921,0.34,141.2,141.12,11.85]
[1720672695219,6.1461,141.22,141.12,11.85]
[1720672695220,0.34,141.21,141.18,11.85]
[1720672695418,19.36222256,141.2,141.18,11.85]
[1720672695726,19.36222256,141.2,141.19,11.85]
[1720672695925,19.70222256,141.2,141.18,11.85]
[1720672696220,0.34,141.21,141.18,11.85]
[1720672696404,19.36217759,141.2,141.18,11.85]
[1720672697019,19.36217759,141.2,141.17,11.85]
[1720672697825,0.34,141.21,141.17,11.85]
[1720672701128,19.36217962,141.2,141.18,11.85]
[1720672701329,0.17,141.22,141.19,11.85]
[1720672701728,19.53070377,141.22,141.19,11.85]
[1720672701931,19.53070377,141.22,141.12,63.926]
[1720672701932,19.53070377,141.22,141.18,11.85]
[1720672702128,19.53070377,141.22,141.12,63.926]
[1720672702439,19.53070377,141.22,141.18,11.85]
[1720672702626,0.17,141.22,141.19,11.85]
[1720672702806,19.53017939,141.22,141.19,11.85]
[1720672705832,19.36017939,141.22,141.2,11.85]
[1720672706019,0.34,141.23,141.2,11.85]
[1720672706217,19.35988692,141.22,141.2,11.85]
[1720672706417,0.34,141.23,141.2,11.85]
[1720672707133,19.3598464,141.22,141.2,11.85]
[1720672709642,0.34,141.23,141.2,11.85]
[1720672709822,19.35984802,141.22,141.2,11.85]
[1720672710140,0.34,141.23,141.2,11.85]
[1720672710432,19.3598464,141.22,141.21,11.85]
[1720672710632,19.5298464,141.24,141.21,11.85]